fUSD/lending_fUSD_20251014
["ID","MTS","AMOUNT","RATE_DAILY","PERIOD"]
[391186656,1760411438080,-201.13635058,0.00015615,2]
[391186743,1760411439164,-98.86364942,0.00015615,2]
[391186745,1760411439174,-204.4894419,0.00023679,2]
[391186747,1760411439183,-166.66,0.00024865,30]
[391186749,1760411439192,-500.0,0.00024932,2]
[391186751,1760411439201,-166.66,0.00025388,30]
[391186753,1760411439210,-3.32690868,0.00025671,2]
[391186846,1760411440078,-146.67309132,0.00025671,2]
[391186848,1760411440092,-105.43127814,0.00025671,2]
[391186850,1760411440104,-44.56872186,0.00025671,2]
[391186852,1760411440114,-150.0,0.00025671,2]
[391186854,1760411440123,-150.0,0.00025671,2]
[391186856,1760411440133,-1549.68,0.00025898,2]
[391186858,1760411440142,-166.66,0.00025912,30]
[391186860,1760411440151,-666.0,0.0002592,3]
[391186862,1760411440161,-150.0,0.00025948,2]
[391186864,1760411440170,-543.39127814,0.00025986,120]
[391186866,1760411440182,-486.17872186,0.00025986,120]
[391186868,1760411440191,-173.68,0.0002602,2]
[391186870,1760411440200,-699.87701509,0.00026022,2]
[391186872,1760411440314,-137.12298491,0.00026022,2]
[391186873,1760411440323,-154.74,0.00026178,2]
[391186874,1760411440332,-286.93031433,0.00026178,2]
[391187176,1760411443153,-27.68968567,0.00026178,2]
[391187178,1760411443163,-151.51,0.00026178,2]
[391187180,1760411443172,-152.43,0.00026178,2]
[391187182,1760411443181,-151.85,0.00026178,2]
[391187186,1760411443191,-301.04,0.00026178,2]
[391187189,1760411443199,-925.18031433,0.00026262,2]
[391187203,1760411443416,-6602.53968567,0.00026262,2]
[391187205,1760411443425,-837.0,0.00026308,7]
[391187208,1760411443435,-2000.0,0.00026343,2]
[391187210,1760411443445,-166.66,0.00026435,30]
[391187211,1760411443454,-479.22,0.00026493,2]
[391187213,1760411443464,-474.58,0.00026493,2]
[391187215,1760411443475,-474.58,0.00026493,2]
[391187218,1760411443484,-28.62171434,0.00026493,2]
[391187220,1760411443502,-121.37828566,0.00026493,2]
[391187222,1760411443511,-168.0,0.00026701,2]
[391187224,1760411443521,-151.0,0.00026767,2]
[391187226,1760411443530,-151.0,0.00026767,2]
[391187228,1760411443539,-151.0,0.00026767,2]
[391187230,1760411443548,-151.0,0.00026767,2]
[391187232,1760411443558,-151.0,0.00026767,2]
[391187234,1760411443567,-151.0,0.00026767,2]
[391187236,1760411443576,-151.0,0.00026767,2]
[391187238,1760411443585,-10.43415915,0.00026767,2]
[391187501,1760411446162,-140.56584085,0.00026767,2]
[391187503,1760411446173,-151.0,0.00026767,2]
[391187505,1760411446183,-151.0,0.00026767,2]
[391187507,1760411446192,-151.0,0.00026767,2]
[391187509,1760411446201,-151.0,0.00026767,2]
[391187511,1760411446211,-151.0,0.00026767,2]
[391187513,1760411446220,-151.0,0.00026767,2]
[391187515,1760411446229,-151.0,0.00026767,2]
[391187517,1760411446238,-151.0,0.00026767,2]
[391187519,1760411446251,-151.0,0.00026767,2]
[391187521,1760411446260,-151.0,0.00026767,2]
[391187523,1760411446269,-151.0,0.00026767,2]
[391187525,1760411446278,-471.88,0.00026767,2]
[391187527,1760411446288,-322.6107,0.00026783,2]
[391187529,1760411446297,-2000.0,0.00026783,2]
[391187531,1760411446306,-721.12765535,0.00026783,2]
[391187533,1760411446316,-1000.0,0.00026783,2]
[391187535,1760411446325,-2000.0,0.00026783,2]
[391187537,1760411446334,-1000.0,0.00026783,2]
[391187539,1760411446345,-2000.0,0.00026783,2]
[391187541,1760411446353,-1000.0,0.00026783,2]
[391187543,1760411446363,-2000.0,0.00026783,2]
[391187545,1760411446372,-739.02221979,0.00026783,2]
[391187547,1760411446382,-2000.0,0.00026783,2]
[391187549,1760411446391,-250.0,0.00026783,2]
[391187551,1760411446404,-978.39309078,0.00026783,2]
[391187553,1760411446413,-250.0,0.00026783,2]
[391187555,1760411446422,-250.0,0.00026783,2]
[391187557,1760411446431,-250.0,0.00026783,2]
[391187559,1760411446442,-250.0,0.00026783,2]
[391187606,1760411446884,-250.0,0.00026783,2]
[391187607,1760411446894,-250.0,0.00026783,2]
[391187608,1760411446903,-250.0,0.00026783,2]
[391187610,1760411446912,-1804.19177279,0.00026783,2]
[391187611,1760411446922,-250.0,0.00026783,2]
[391187613,1760411446932,-250.0,0.00026783,2]
[391187614,1760411446941,-250.0,0.00026783,2]
[391187615,1760411446951,-693.3919763,0.00026783,2]
[391187616,1760411446960,-9552.16786547,0.00026783,2]
[391187617,1760411446969,-301.00491062,0.00026783,2]
[391187618,1760411446979,-151.0,0.00026783,2]
[391187619,1760411446988,-151.0,0.00026783,2]
[391187621,1760411447000,-151.0,0.00026783,2]
[391187622,1760411447009,-153.54777993,0.00026783,2]
[391187623,1760411447021,-151.0,0.00026783,2]
[391187625,1760411447031,-275.9133962,0.00026783,2]
[391187626,1760411447041,-277.35679052,0.00026783,2]
[391187627,1760411447051,-374.04877887,0.00026783,2]
[391187628,1760411447060,-151.0,0.00026783,2]
[391187629,1760411447070,-250.0,0.00026783,2]
[391187630,1760411447079,-250.0,0.00026783,2]
[391187631,1760411447088,-250.0,0.00026783,2]
[391187632,1760411447098,-250.0,0.00026783,2]
[391187633,1760411447109,-250.0,0.00026783,2]
[391187634,1760411447118,-250.0,0.00026783,2]
[391187635,1760411447129,-250.0,0.00026783,2]
[391187636,1760411447138,-250.0,0.00026783,2]
[391187637,1760411447148,-258.0422157,0.00026783,2]
[391187638,1760411447158,-150.0,0.00026783,2]
[391187639,1760411447168,-500.0,0.00026783,2]
[391187640,1760411447177,-433.0,0.00026783,2]
[391187641,1760411447186,-150.0,0.00026783,2]
[391187642,1760411447196,-500.0,0.00026783,2]
[391187643,1760411447204,-500.0,0.00026783,2]
[391187644,1760411447214,-500.0,0.00026783,2]
[391187645,1760411447223,-500.0,0.00026783,2]
[391187646,1760411447233,-500.0,0.00026783,2]
[391187647,1760411447245,-500.0,0.00026783,2]
[391187648,1760411447254,-150.0,0.00026783,2]
[391187649,1760411447264,-150.0,0.00026783,2]
[391187650,1760411447273,-500.0,0.00026783,2]
[391187651,1760411447283,-150.0,0.00026783,2]
[391187652,1760411447292,-156.15511433,0.00026783,2]
[391187653,1760411447302,-150.0,0.00026783,2]
[391187654,1760411447311,-1000.0,0.000268,2]
[391187655,1760411447322,-1000.0,0.000268,3]
[391187656,1760411447332,-1000.0,0.000268,4]
[391187657,1760411447342,-1000.0,0.000268,5]
[391187658,1760411447353,-166.69,0.00026801,2]
[391187659,1760411447362,-150.0,0.00026838,2]
[391187660,1760411447371,-500.0,0.00026838,2]
[391187661,1760411447381,-433.0,0.00026838,2]
[391187662,1760411447390,-202.75253396,0.00026838,2]
[391187663,1760411447403,-500.0,0.00026838,2]
[391187664,1760411447413,-500.0,0.00026838,2]
[391187665,1760411447423,-500.0,0.00026838,2]
[391187666,1760411447432,-500.0,0.00026838,2]
[391187667,1760411447443,-500.0,0.00026838,2]
[391187668,1760411447453,-500.0,0.00026838,2]
[391187669,1760411447463,-500.0,0.00026838,2]
[391187670,1760411447473,-150.0,0.00026838,2]
[391187671,1760411447483,-9905.5980765,0.00026838,2]
[391187672,1760411447492,-168.0,0.00026859,2]
[391187673,1760411447502,-200.82157195,0.00026893,2]
[391187674,1760411447511,-500.0,0.00026893,2]
[391187675,1760411447520,-433.0,0.00026893,2]
[391187676,1760411447530,-500.0,0.00026893,2]
[391187677,1760411447539,-500.0,0.00026893,2]
[391187678,1760411447548,-500.0,0.00026893,2]
[391187679,1760411447557,-500.0,0.00026893,2]
[391187680,1760411447567,-500.0,0.00026893,2]
[391187681,1760411447576,-575.91322583,0.00026893,2]
[391187682,1760411447586,-500.0,0.00026893,2]
[391187683,1760411447595,-150.0,0.00026893,2]
[391187684,1760411447605,-10272.10520533,0.00026893,2]
[391187685,1760411447614,-1852.80091,0.000269,2]
[391187686,1760411447624,-168.0,0.00026919,2]
[391187687,1760411447633,-500.0,0.00026947,2]
[391187688,1760411447643,-433.0,0.00026947,2]
[391187689,1760411447652,-500.0,0.00026947,2]
[391187690,1760411447661,-500.0,0.00026947,2]
[391187691,1760411447671,-500.0,0.00026947,2]
[391187692,1760411447680,-500.0,0.00026947,2]
[391187693,1760411447689,-500.0,0.00026947,2]
[391187694,1760411447699,-500.0,0.00026947,2]
[391187695,1760411447709,-214.56341322,0.00026947,2]
[391187696,1760411447718,-4813.97812704,0.00026948,2]
[391187697,1760411447731,-239.88158342,0.00026948,2]
[391187698,1760411447740,-166.66,0.00026959,30]
[391187699,1760411447751,-488.58941658,0.00027,2]
[391187700,1760411447786,-35.91058342,0.00027,2]
[391187701,1760411447795,-585.0,0.00027,120]
[391187702,1760411447805,-252.86352965,0.00027,15]
[391187703,1760411447819,-251.80008374,0.00027,15]
[391187770,1760411726534,-1238.51218915,0.00013734,2]
[391187771,1760411729082,-222.67861483,0.00013734,2]
[391187800,1760412069582,310.686921,7.945e-05,2]
[391187827,1760412210286,-302.5993359,0.00013699,2]
[391187882,1760412403774,169.71,0.00011669,2]
[391187994,1760412632206,-160.62,0.00013698,2]
[391187996,1760412632216,-14.0606641,0.00013699,2]
[391187998,1760412632226,-169.71,0.00014003,2]
[391188000,1760412632236,-250.0,0.00014041,2]
[391188002,1760412632245,-958.63110004,0.000145,3]
[391188003,1760412632255,-226.68868191,0.00014873,2]
[391188004,1760412632266,-311.86202429,0.00014973,2]
[391188005,1760412632275,-163.459616,0.00014973,2]
[391188006,1760412632286,-300.0,0.00014998,2]
[391188007,1760412632295,-315.11308574,0.00014998,2]
[391188008,1760412632307,-549.15726767,0.00014998,2]
[391188009,1760412632331,-335.72964659,0.00014998,2]
[391188010,1760412632340,-150.0,0.00014998,2]
[391188011,1760412632350,-24.27035341,0.00014999,2]
[391188012,1760412632363,-475.72964659,0.00014999,2]
[391188013,1760412632372,-188.63777297,0.00014999,2]
[391188014,1760412632382,-500.0,0.00014999,2]
[391188015,1760412632394,-500.0,0.00014999,2]
[391188016,1760412632404,-500.0,0.00014999,2]
[391188017,1760412632414,-500.0,0.00014999,2]
[391188018,1760412632425,-500.0,0.00014999,2]
[391188019,1760412632436,-500.0,0.00014999,2]
[391188020,1760412632446,-500.0,0.00014999,2]
[391188021,1760412632457,-437.3634843,0.00014999,2]
[391188022,1760412632466,-500.0,0.00014999,2]
[391188023,1760412632475,-499.99999999,0.00014999,2]
[391188025,1760412632485,-77436.74401287,0.00015,2]
[391188026,1760412632494,-26056.15854222,0.00015,2]
[391188037,1760412633591,-31874.06290259,0.00015,2]
[391188038,1760412633614,-1830.41892179,0.00015,2]
[391188039,1760412633626,-771.51877776,0.00015,2]
[391188040,1760412633637,-870.90512706,0.00015,2]
[391188041,1760412633679,-11288.26136447,0.00015,2]
[391188042,1760412633691,-2287.79649525,0.00015,2]
[391188044,1760412638442,-226.6886819,0.00014887,2]
[391188045,1760412638452,-192.3863181,0.00015,2]
[391188206,1760412640370,-1160.1353765,0.00014999,2]
[391188209,1760412640385,-1191.08662124,0.00014999,2]
[391188210,1760412640394,-107.40278245,0.00015,2]
[391188211,1760412640405,-5642.29938424,0.00015,2]
[391188212,1760412640416,-416.445,0.00015,2]
[391188213,1760412640428,-2045.79689395,0.00015,2]
[391188499,1760412646253,-226.6886819,0.000149,2]
[391188500,1760412646263,-271.49007024,0.00015,2]
[391188501,1760412646274,-282.60474651,0.00015,2]
[391188502,1760412646285,-9466.03317538,0.00015,2]
[391188503,1760412646295,-3487.35409433,0.00015,2]
[391188504,1760412646306,-239.01585677,0.00015068,2]
[391188505,1760412646317,-910.07126,0.00015068,2]
[391188506,1760412646328,-89.31065271,0.00015068,2]
[391188507,1760412646337,-250.0,0.00015068,2]
[391188508,1760412646346,-169.71,0.00016336,2]
[391188509,1760412646356,-169.71,0.0001867,2]
[391188510,1760412646365,-500.0,0.00019205,2]
[391188511,1760412646375,-250.0,0.00019445,7]
[391188512,1760412646385,-7678.0,0.0002,3]
[391188513,1760412646396,-316.66,0.00020187,2]
[391188514,1760412646407,-500.0,0.00020838,2]
[391188515,1760412646416,-151.41,0.00020938,2]
[391188516,1760412646425,-152.28,0.00020938,2]
[391188517,1760412646434,-152.65,0.00020938,2]
[391188518,1760412646443,-152.82,0.00020938,2]
[391188519,1760412646452,-150.89,0.00020938,2]
[391188520,1760412646461,-304.0,0.00020938,2]
[391188521,1760412646470,-152.65,0.00020938,2]
[391188522,1760412646479,-304.61,0.00020938,2]
[391188523,1760412646488,-165.46866088,0.00020945,2]
[391188524,1760412646497,-305.46,0.00020957,2]
[391188525,1760412646507,-169.71,0.00021004,2]
[391188526,1760412646520,-150.09,0.00021037,2]
[391188527,1760412646530,-150.39,0.00021037,2]
[391188528,1760412646540,-151.5,0.00021037,2]
[391188529,1760412646550,-152.8,0.00021037,2]
[391188530,1760412646559,-150.93,0.00021037,2]
[391188531,1760412646568,-151.31,0.00021037,2]
[391188532,1760412646578,-305.05,0.00021037,2]
[391188534,1760412646589,-302.41,0.00021037,2]
[391188536,1760412646599,-304.72,0.00021037,2]
[391188538,1760412646608,-170.28,0.00021038,2]
[391188540,1760412646617,-231.11,0.00021038,2]
[391188541,1760412646626,-303.63,0.00021038,2]
[391188542,1760412646635,-303.82,0.00021038,2]
[391188543,1760412646644,-304.18,0.00021038,2]
[391188544,1760412646653,-300.89,0.00021038,2]
[391188545,1760412646662,-301.35,0.00021038,2]
[391188546,1760412646671,-305.85,0.00021038,2]
[391188547,1760412646680,-305.0,0.00021038,2]
[391188548,1760412646689,-305.0,0.00021038,2]
[391188549,1760412646698,-151.64,0.00021038,2]
[391188550,1760412646707,-150.71,0.00021038,2]
[391188551,1760412646716,-150.25,0.00021038,2]
[391188552,1760412646726,-152.49,0.00021038,2]
[391188553,1760412646735,-150.16,0.00021038,2]
[391188555,1760412646744,-151.01,0.00021038,2]
[391188556,1760412646754,-151.46,0.00021038,2]
[391188557,1760412646763,-150.44,0.00021038,2]
[391188558,1760412646772,-152.88,0.00021038,2]
[391188559,1760412646782,-152.87,0.00021038,2]
[391188560,1760412646791,-150.24,0.00021038,2]
[391188561,1760412646800,-151.05,0.00021038,2]
[391188562,1760412646809,-152.51,0.00021038,2]
[391188563,1760412646818,-151.03,0.00021038,2]
[391188564,1760412646827,-151.59,0.00021038,2]
[391188565,1760412646837,-151.14,0.00021038,2]
[391188566,1760412646846,-152.72,0.00021038,2]
[391188567,1760412646856,-152.57,0.00021038,2]
[391188568,1760412646868,-152.25,0.00021038,2]
[391188569,1760412646877,-152.81,0.00021038,2]
[391188570,1760412646886,-150.2,0.00021038,2]
[391188571,1760412646895,-301.67,0.00021039,2]
[391188572,1760412646903,-151.84,0.00021039,2]
[391188573,1760412646914,-151.07,0.00021039,2]
[391188574,1760412646923,-202.98204729,0.00021039,2]
[391188575,1760412646931,-151.0,0.00021039,2]
[391188576,1760412646942,-151.0,0.00021039,2]
[391188577,1760412646951,-151.0,0.00021039,2]
[391188578,1760412646960,-189.42033183,0.00021039,2]
[391188579,1760412646969,-202.4534547,0.00021039,2]
[391188580,1760412646979,-150.89,0.00021042,2]
[391188581,1760412646988,-151.3,0.00021042,2]
[391188582,1760412646997,-150.37,0.00021042,2]
[391188583,1760412647007,-1090.0,0.00021045,2]
[391188584,1760412647016,-304.12,0.00021052,2]
[391188585,1760412647025,-152.12,0.00021054,2]
[391188586,1760412647035,-150.48,0.00021054,2]
[391188587,1760412647048,-152.27,0.00021055,2]
[391188588,1760412647062,-151.94,0.00021055,2]
[391188589,1760412647071,-102.41010152,0.00021073,2]
[391188590,1760412647237,-397.58989848,0.00021073,2]
[391188591,1760412647246,-281.20682322,0.00021074,2]
[391188592,1760412647257,-20.38317678,0.00021074,2]
[391188593,1760412647267,-300.94,0.0002109,2]
[391188594,1760412647275,-572.10680401,0.00021106,2]
[391188595,1760412647285,-151.05,0.00021107,2]
[391188596,1760412647294,-134.53388094,0.00021107,2]
[391188597,1760412647405,-17.76611906,0.00021107,2]
[391188598,1760412647414,-152.29,0.00021107,2]
[391188599,1760412647423,-150.46,0.00021107,2]
[391188600,1760412647432,-500.0,0.00021173,2]
[391188601,1760412647442,-521.82449308,0.00021173,2]
[391188602,1760412647451,-302.76,0.00021201,2]
[391188603,1760412647460,-231.11,0.00021312,2]
[391188604,1760412647469,-151.67,0.00021331,2]
[391188605,1760412647478,-152.01,0.00021331,2]
[391188606,1760412647487,-152.5,0.00021331,2]
[391188607,1760412647496,-151.46,0.00021331,2]
[391188608,1760412647505,-231.13884059,0.00021586,2]
[391188609,1760412647514,-500.0,0.00021621,2]
[391188610,1760412647523,-302.76,0.00021729,2]
[391188611,1760412647532,-151.0,0.00021976,2]
[391188612,1760412647541,-152.89,0.00022277,2]
[391188613,1760412647550,-152.01,0.00022277,2]
[391188614,1760412647559,-151.78,0.00022277,2]
[391188615,1760412647568,-150.22,0.00022277,2]
[391188616,1760412647577,-250.0,0.00022358,2]
[391188617,1760412647587,-304.52,0.00023187,2]
[391188618,1760412647596,-169.71,0.00023338,2]
[391188619,1760412647605,-200.0,0.00023607,2]
[391188620,1760412647615,-303.85,0.00023965,2]
[391188621,1760412647624,-1387.84188867,0.00024015,2]
[391188622,1760412647633,-1950.35160817,0.00024015,2]
[391188623,1760412647642,-151.0,0.00024112,7]
[391188624,1760412647651,-5000.0,0.00024115,2]
[391188625,1760412647660,-1852.42,0.00024352,2]
[391188626,1760412647669,-1950.35160816,0.0002438,2]
[391188627,1760412647679,-2411.427,0.00024436,7]
[391188628,1760412647688,-657.88,0.00024545,2]
[391188629,1760412647697,-1950.35160816,0.00024744,2]
[391188630,1760412647707,-1216.43729664,0.000248,2]
[391188631,1760412647717,-500.0,0.00024932,2]
[391188632,1760412647726,-159.0,0.00025,10]
[391188633,1760412647735,-163.84,0.00025,10]
[391188634,1760412647744,-1950.35160816,0.00025109,2]
[391188635,1760412647753,-1950.35160816,0.00025474,2]
[391188636,1760412647762,-1950.35160816,0.00025838,2]
[391188637,1760412647771,-159.0,0.00026,15]
[391188638,1760412647781,-159.0,0.00026,15]
[391188639,1760412647790,-159.0,0.00026,15]
[391188640,1760412647800,-578.0,0.00026044,2]
[391188641,1760412647810,-153.13337244,0.00026172,7]
[391188642,1760412647820,-322.6107,0.00026175,2]
[391188643,1760412647829,-2520.16727383,0.00026175,2]
[391188644,1760412647852,-2223.74664,0.00026175,2]
[391188645,1760412647875,-4808.25395164,0.00026175,2]
[391188646,1760412647884,-2057.12283965,0.00026175,2]
[391188647,1760412647894,-151.0,0.00026175,2]
[391188648,1760412647903,-250.0,0.00026175,2]
[391188649,1760412647913,-250.0,0.00026175,2]
[391188650,1760412647922,-250.0,0.00026175,2]
[391188651,1760412647931,-250.0,0.00026175,2]
[391188652,1760412647942,-250.0,0.00026175,2]
[391188653,1760412647952,-250.0,0.00026175,2]
[391188654,1760412647963,-250.0,0.00026175,2]
[391188655,1760412647973,-250.0,0.00026175,2]
[391188656,1760412647983,-250.0,0.00026175,2]
[391188657,1760412647994,-277.35679052,0.00026175,2]
[391188658,1760412648004,-250.0,0.00026175,2]
[391188659,1760412648015,-262.06009032,0.00026175,2]
[391188660,1760412648025,-721.12765535,0.00026175,2]
[391188661,1760412648034,-693.3919763,0.00026175,2]
[391188662,1760412648043,-1122.23,0.0002618,120]
[391188663,1760412648054,-1950.35160816,0.00026203,2]
[391188664,1760412648063,-7723.24772056,0.0002623,2]
[391188665,1760412648073,-151.28,0.00026304,2]
[391188666,1760412648082,-150.71,0.00026304,2]
[391188667,1760412648092,-150.13,0.00026304,2]
[391188668,1760412648101,-500.92,0.00026304,30]
[391188669,1760412648110,-578.0,0.00026308,2]
[391188670,1760412648120,-516.98,0.00026322,2]
[391188671,1760412648132,-546.03,0.00026384,2]
[391188672,1760412648142,-300.0,0.00026384,2]
[391188673,1760412648151,-153.96,0.00026384,2]
[391188674,1760412648160,-172.4784087,0.00026384,2]
[391188675,1760412648170,-578.0,0.00026386,7]
[391188676,1760412648180,-694.95,0.00026438,2]
[391188677,1760412648190,-954.68,0.00026438,2]
[391188678,1760412648199,-694.95,0.00026438,2]
[391188679,1760412648210,-474.23,0.00026438,2]
[391188680,1760412648219,-694.95,0.00026438,2]
[391188681,1760412648228,-694.95,0.00026438,2]
[391188682,1760412648238,-694.95,0.00026438,2]
[391188683,1760412648247,-694.95,0.00026438,2]
[391188684,1760412648256,-694.95,0.00026438,2]
[391188685,1760412648266,-694.95,0.00026438,2]
[391188686,1760412648276,-578.0,0.00026499,7]
[391188687,1760412648284,-578.0,0.00026536,2]
[391188688,1760412648298,-953.0,0.00026563,2]
[391188689,1760412648307,-1950.35160816,0.00026568,2]
[391188690,1760412648317,-546.46,0.00026575,2]
[391188691,1760412648326,-175.97,0.00026575,2]
[391188692,1760412648336,-170.22,0.00026575,2]
[391188693,1760412648347,-413.45,0.00026575,2]
[391188694,1760412648356,-300.0,0.00026575,2]
[391188695,1760412648365,-546.46,0.00026575,2]
[391188696,1760412648374,-413.45,0.00026575,2]
[391188697,1760412648383,-175.97,0.00026575,2]
[391188698,1760412648394,-153.9,0.00026575,2]
[391188699,1760412648403,-546.46,0.00026575,2]
[391188700,1760412648413,-175.97,0.00026575,2]
[391188701,1760412648424,-413.45,0.00026575,2]
[391188702,1760412648433,-301.22,0.00026575,2]
[391188703,1760412648444,-175.77,0.00026575,2]
[391188704,1760412648453,-545.9,0.00026575,2]
[391188705,1760412648465,-417.4,0.00026575,2]
[391188706,1760412648475,-578.0,0.00026636,2]
[391188707,1760412648485,-316.66,0.00026676,2]
[391188708,1760412648495,-152.5657948,0.00026723,2]
[391188709,1760412648504,-1544.00076,0.0002673,2]
[391188710,1760412648513,-578.0,0.00026801,2]
[391188711,1760412648523,-1950.35160816,0.00026932,2]
[391188712,1760412648532,-150.0,0.00026947,2]
[391188713,1760412648541,-500.0,0.00026947,2]
[391188714,1760412648550,-500.0,0.00026947,2]
[391188715,1760412648559,-500.0,0.00026947,2]
[391188716,1760412648568,-150.81914312,0.00026947,2]
[391188717,1760412648578,-500.0,0.00026947,2]
[391188718,1760412648588,-500.0,0.00026947,2]
[391188719,1760412648598,-500.0,0.00026947,2]
[391188720,1760412648607,-500.0,0.00026947,2]
[391188721,1760412648617,-462.0,0.00026947,2]
[391188722,1760412648627,-500.0,0.00026947,2]
[391188723,1760412648637,-150.0,0.00026947,2]
[391188724,1760412648646,-500.0,0.00026947,2]
[391188725,1760412648660,-251.98177729,0.00026947,2]
[391188726,1760412648670,-500.0,0.00026947,2]
[391188727,1760412648680,-150.0,0.00026947,2]
[391188728,1760412648689,-150.0,0.00026947,2]
[391188729,1760412648699,-500.0,0.00026947,2]
[391188730,1760412648709,-500.0,0.00026947,2]
[391188731,1760412648718,-500.0,0.00026947,2]
[391188732,1760412648727,-200.0,0.00026955,2]
[391188733,1760412648737,-200.0,0.00026956,2]
[391188734,1760412648746,-9207.0241609,0.00026998,2]
[391188735,1760412648757,-6898.5452517,0.00026998,2]
[391188736,1760412648766,-159.0,0.00027,30]
[391188737,1760412648775,-159.0,0.00027,30]
[391188738,1760412648784,-532.8,0.00027,2]
[391188739,1760412648793,-150.36,0.00027,2]
[391188740,1760412648802,-151.42,0.00027,2]
[391188741,1760412648812,-150.92,0.00027,2]
[391188742,1760412648821,-521.49,0.00027,2]
[391188743,1760412648830,-159.0,0.00027,30]
[391188744,1760412648840,-159.0,0.00027,20]
[391188745,1760412648849,-159.0,0.00027,20]
[391188746,1760412648859,-200.0,0.00027,2]
[391188747,1760412648877,-151.56273098,0.00027002,2]
[391188748,1760412648886,-501.91257508,0.00027002,2]
[391188749,1760412648897,-500.0,0.00027002,2]
[391188750,1760412648908,-500.0,0.00027002,2]
[391188751,1760412648918,-500.0,0.00027002,2]
[391188752,1760412648927,-500.0,0.00027002,2]
[391188753,1760412648937,-500.0,0.00027002,2]
[391188754,1760412648947,-500.0,0.00027002,2]
[391188755,1760412648956,-462.0,0.00027002,2]
[391188756,1760412648966,-500.0,0.00027002,2]
[391188757,1760412648975,-500.0,0.00027002,2]
[391188758,1760412648985,-500.0,0.00027002,2]
[391188759,1760412649356,-500.0,0.00027002,2]
[391188760,1760412649408,-500.0,0.00027002,2]
[391188761,1760412649419,-500.0,0.00027002,2]
[391188762,1760412649434,-9207.0241609,0.00027031,2]
[391188763,1760412649447,-3312.14758687,0.00027038,2]
[391188764,1760412649458,-253.52141479,0.00027046,2]
[391188765,1760412649468,-3312.14758687,0.00027052,2]
[391188766,1760412649477,-600.7800469,0.00027057,2]
[391188767,1760412649489,-37.99369175,0.00027057,2]
[391188768,1760412649501,-500.0,0.00027057,2]
[391188769,1760412649511,-500.0,0.00027057,2]
[391188770,1760412649520,-500.0,0.00027057,2]
[391188771,1760412649529,-500.0,0.00027057,2]
[391188772,1760412649539,-500.0,0.00027057,2]
[391188773,1760412649548,-462.0,0.00027057,2]
[391188774,1760412649557,-500.0,0.00027057,2]
[391188775,1760412649566,-500.0,0.00027057,2]
[391188776,1760412649577,-500.0,0.00027057,2]
[391188777,1760412649586,-500.0,0.00027057,2]
[391188778,1760412649595,-500.0,0.00027057,2]
[391188779,1760412649605,-500.0,0.00027057,2]
[391188780,1760412649617,-854.17226126,0.00027062,2]
[391188781,1760412649636,-9207.0241609,0.00027064,2]
[391188782,1760412649648,-500.0,0.00027065,2]
[391188783,1760412649657,-500.0,0.00027065,2]
[391188784,1760412649667,-500.0,0.00027065,2]
[391188785,1760412649676,-500.0,0.00027065,2]